Cogmind - Beta 12 *** ADVENTURER MODE // 2024.02.14 @ 14:34:12 Player: Baschiieep Result: Destroyed by D-53 Grenadier with Mini Grenade Launcher Performance ------------- Evolutions (1) 500 Regions Visited (4) 800 Robots Destroyed (37) 185 Value Destroyed (867) 867 Prototype IDs (0) 0 Alien Tech Used (0) 0 Bonus (7) 7 TOTAL SCORE: 2359 Bonus ------- Follower Combat Kills 7 Cogmind --------- Core Integrity 0/400 Matter 207/300 Energy 100/100 System Corruption 4% Temperature Cool (0) Movement Core (1400) Ox27 Location -9/Mines Parts ------- > --- POWER (2) -------- (None) > --- PROPULSION (3) --- (None) > --- UTILITY (2) ------ Huge Storage Unit Signal Interpreter > --- WEAPON (2) ------- Autogun > --- INVENTORY (25) --- Aluminum Leg Improved Heat Sink Small Storage Unit Faulty Experimental Sensor Array Terrain Scanner Medium Armor Plating Small Laser Small Laser Beam Cannon Assault Rifle Light Assault Rifle Light Assault Rifle Light Assault Rifle Autogun Autogun Light Cannon Light Cannon Grenade Launcher Plasma Cutter Peak State ------------ > --- POWER ------------ Light Ion Engine Light Angular Momentum Engine > --- PROPULSION ------- Aluminum Leg Aluminum Leg Carbon-fiber Leg > --- UTILITY ---------- Huge Storage Unit Signal Interpreter > --- WEAPON ----------- Beam Cannon Mini Grenade Launcher > --- INVENTORY -------- Light Ion Engine Aluminum Leg Aluminum Leg Aluminum Leg Aluminum Leg Improved Heat Sink Small Storage Unit Structural Scanner Experimental Sensor Array Terrain Scanner Small Laser Assault Rifle Light Assault Rifle Light Assault Rifle Light Assault Rifle Light Cannon Light Cannon Grenade Launcher Plasma Cutter [Rating: 19] Favorites ----------- Power Ion Engine Engine Ion Engine Propulsion Aluminum Leg Leg Aluminum Leg Utility Huge Storage Unit Device Improved Heat Sink Storage Huge Storage Unit Processor Signal Interpreter Weapon Assault Rifle Energy Cannon Beam Cannon Ballistic Gun Assault Rifle Launcher Mini Grenade Launcher Special Weapon Mining Laser Build | -11 -10 -10 -9 -9 ------- Run | Jun Mat Min Mat Min Slots Evolved 2 | . . . 2 . Power 1 | . . . 1 . Propulsion 1 | . . . 1 . Utility . | . . . . . Weapon . | . . . . . Parts Attached 34 | 7 6 2 17 2 Power 8 | 2 . . 5 1 Engine 8 | 2 . . 5 1 Core . | . . . . . Reactor . | . . . . . Propulsion 11 | 2 . 1 8 . Treads . | . . . . . Leg 11 | 2 . 1 8 . Wheel . | . . . . . Hover . | . . . . . Flight . | . . . . . Utility 7 | 1 4 1 1 . Device 3 | . 2 1 . . Storage 3 | 1 2 . . . Processor 1 | . . . 1 . Hackware . | . . . . . Protection . | . . . . . Artifact . | . . . . . Weapon 8 | 2 2 . 3 1 Energy Gun . | . . . . . Energy Cannon 1 | . . . 1 . Ballistic Gun 5 | 2 1 . 1 1 Ballistic Cannon . | . . . . . Launcher 1 | . . . 1 . Special Weapon 1 | . 1 . . . Impact Weapon . | . . . . . Slashing Weapon . | . . . . . Piercing Weapon . | . . . . . Special Melee Weapon . | . . . . . Unidentified Prototypes . | . . . . . Parts Lost 14 | . . . 7 7 Power 5 | . . . 2 3 Propulsion 6 | . . . 3 3 Utility . | . . . . . Weapon 3 | . . . 2 1 Highest Loss Streak 6 | . . . 3 6 To Critical Strikes . | . . . . . Average Slot Usage (%) 98 | . 97 99 98 96 Engine 17 | . 14 14 21 20 Leg 29 | . 28 28 32 31 Device 7 | . 7 13 . . Storage 13 | . 18 14 11 11 Processor 4 | . . . 10 11 Energy Cannon 2 | . . . 4 . Ballistic Gun 21 | . 27 28 13 21 Launcher 1 | . . . 3 . Naked Turns . | . . . . . Heaviest Build 98 | 14 90 90 98 92 Greatest Support 35 | 20 20 25 35 30 Greatest Overweight (x) 29 | 3 4 4 4 29 Average Overweight (x) 2 | . 1 3 2 3 Largest Inventory Capacity 25 | 8 25 25 25 25 Average Capacity 24 | 7 17 25 25 25 Most Carried 23 | 2 7 18 23 20 Average Carried 15 | 1 4 14 19 19 Final Capacity 25 | 8 25 25 25 25 Final Carried 19 | 2 6 16 19 19 Class Distribution -------------------- 71% | Mutant 28% | Scavenger-Mutant Dominant Class ---------------- Mutant | -10/Materials Mutant | -10/Mines Scavenger-Mutant | -9/Materials Scavenger-Mutant | -9/Mines Resources | -11 -10 -10 -9 -9 ----------- Run | Jun Mat Min Mat Min Matter Collected 876 | 187 29 313 297 50 Remotely . | . . . . . Salvage Created 1121 | . 41 383 621 76 Parts 80 | . 5 26 43 6 Haulers Intercepted . | . . . . . Recyclers Shooed 2 | . . 2 . . Parts Field Recycled . | . . . . . Retrieved Matter . | . . . . . Parts Self-Destructed . | . . . . . Prevented . | . . . . . Kills | -11 -10 -10 -9 -9 ------- Run | Jun Mat Min Mat Min Combat Hostiles Destroyed 31 | . . 7 19 5 Guns 18 | . . 7 8 3 Cannons 5 | . . . 3 2 AOE 8 | . . . 8 . Classes Destroyed 9 | . 2 5 1 1 Worker 3 | . . 3 . . Builder 1 | . 1 . . . Tunneler 1 | . . 1 . . Recycler 1 | . . 1 . . Watcher 2 | . 1 . 1 . Swarmer 10 | . . 3 4 3 Grunt 17 | . . 4 13 . Sentry 2 | . . . 2 . Assembled 2 | . . . . 2 Best Kill Streak 4 | . 1 4 3 3 Combat Bots Only 3 | . . 2 3 3 Max Kills in Single Turn 2 | . 1 1 2 1 Gunslinging . | . . . . . Exploded 2 | . . . 2 . Melee . | . . . . . Uniques/NPCs Destroyed . | . . . . . Combat | -11 -10 -10 -9 -9 -------- Run | Jun Mat Min Mat Min Damage Taken 2121 | . . 285 1126 710 Core 472 | . . 56 211 205 Absorbed by Shields . | . . . . . Regen/Repaired (Parts) 92 | . . . 92 . Core Remaining (%) 88 | 100 . 77 . . Volleys Fired 94 | . 6 25 54 9 Largest 2 | . 2 2 2 2 Hottest 90 | . 40 40 90 83 Shots Fired 168 | . 11 50 89 18 Gun 133 | . 11 50 57 15 Cannon 26 | . . . 23 3 Launcher 9 | . . . 9 . Special . | . . . . . Kinetic 133 | . 11 50 57 15 Thermal 26 | . . . 23 3 Explosive 9 | . . . 9 . Electromagnetic . | . . . . . Robot Hit Streak 32 | . 7 32 23 9 Robot Miss Streak 2 | . 1 2 2 2 Penetration Max . | . . . . . Secondary Targets 2 | . . . . 2 Max Gunslinging Chain 1 | . . . . 1 Shots Hit Robots 130 | . 8 41 70 11 Core Hits 60 | . 2 19 31 8 Critical Kills . | . . . . . Critical Parts Destroyed . | . . . . . Critical Strikes . | . . . . . Melee Attacks . | . . . . . Impact . | . . . . . Slashing . | . . . . . Piercing . | . . . . . Sneak Attacks . | . . . . . Combat Hostiles . | . . . . . Follow-up Attacks . | . . . . . Damage Inflicted 2341 | . 119 549 1459 214 Guns 1335 | . 119 519 536 161 Cannons 369 | . . . 316 53 Explosions 603 | . . . 603 . Melee . | . . . . . Ramming 34 | . . 30 4 . Kinetic 1335 | . 119 519 536 161 Thermal 369 | . . . 316 53 Explosive 603 | . . . 603 . Electromagnetic . | . . . . . Impact . | . . . . . Slashing . | . . . . . Piercing . | . . . . . Highest Corruption 4 | . . . . 4 Average Corruption 4 | . . . . 4 Corruption Purged . | . . . . . Corruption Blocked . | . . . . . Overload Shots . | . . . . . Overflow Damage 58 | . . . 58 . Projectiles . | . . . . . Explosions 58 | . . . 58 . Melee . | . . . . . Knockbacks . | . . . . . Impact . | . . . . . Kinetic . | . . . . . Secondary . | . . . . . Self-Inflicted Damage 73 | . . . 73 . Shots 4 | . . . 4 . Rammed . | . . . . . Targets Rammed 5 | . . 4 1 . Kicked 5 | . . 4 1 . Crushed . | . . . . . Highest Temperature 151 | . . 20 151 76 Average Temperature 36 | . . 5 41 25 Received Heat Transfer 645 | . . 129 516 . Siege Activations . | . . . . . Robots Corrupted . | . . . . . Combat Hostiles . | . . . . . Parts Fried . | . . . . . Impact Corruptions . | . . . . . Robots Melted . | . . . . . Combat Hostiles . | . . . . . Parts Melted 1 | . . . 1 . Heat Transferred 777 | . . . 666 111 Parts Sabotaged . | . . . . . Parts Stolen . | . . . . . Parts Stripped . | . . . . . Power Chain Reactions . | . . . . . Missiles Intercepted . | . . . . . Alert | -11 -10 -10 -9 -9 ------- Run | Jun Mat Min Mat Min Peak Influence 164 | . 12 100 164 75 Initial . | . . . . . Average 30 | . 1 18 46 71 Maximum Alert Level . | . . . . . Low Security (%) 100 | 100 100 100 100 100 Level 1 . | . . . . . Level 2 . | . . . . . Level 3 . | . . . . . Level 4 . | . . . . . Level 5 . | . . . . . High Security . | . . . . . Max Security . | . . . . . Squads Dispatched 6 | . . . 6 . Investigation 4 | . . . 4 . Extermination . | . . . . . Reinforcement 2 | . . . 2 . Assault . | . . . . . Garrison . | . . . . . Intercept . | . . . . . Searches Triggered . | . . . . . Construction Impeded . | . . . . . Haulers Reinforced . | . . . . . Active Scanning Responses . | . . . . . Cargo Convoy Interrupts . | . . . . . Stealth | -11 -10 -10 -9 -9 --------- Run | Jun Mat Min Mat Min Distress Signals . | . . . . . Communications Jammed . | . . . . . Distress Signals . | . . . . . Times Spotted 53 | . 4 10 22 17 Peak Tracking Total 16 | . 2 3 4 16 Tactical Retreats 2 | . . . 1 1 Traps | -11 -10 -10 -9 -9 ------- Run | Jun Mat Min Mat Min Traps Triggered 1 | . . . 1 . Indirectly . | . . . . . Trap Hack Attempts . | . . . . . Triggered . | . . . . . Disarmed . | . . . . . Reprogrammed . | . . . . . Reused . | . . . . . Traps Extracted . | . . . . . Installed . | . . . . . Triggered . | . . . . . Machines | -11 -10 -10 -9 -9 ---------- Run | Jun Mat Min Mat Min Machines Disabled 2 | . . 1 1 . Max in Single Turn 1 | . . . 1 . Machines Repaired . | . . . . . Machines Sabotaged . | . . . . . Overloaded Fab Kills . | . . . . . Hacking | -11 -10 -10 -9 -9 --------- Run | Jun Mat Min Mat Min Machines Accessed 6 | . 3 . 3 . Terminals 4 | . 2 . 2 . Fabricators . | . . . . . Repair Stations 1 | . . . 1 . Recycling Units 1 | . 1 . . . Scanalyzers . | . . . . . Garrison Access . | . . . . . Total Hacks 13 | . 5 . 8 . Successful 9 | . 5 . 4 . Failed 4 | . . . 4 . Catastrophic . | . . . . . Database Lockouts . | . . . . . Manual . | . . . . . Terminals 8 | . 3 . 5 . Fabricators . | . . . . . Repair Stations 3 | . . . 3 . Recycling Units 2 | . 2 . . . Scanalyzers . | . . . . . Garrison Access . | . . . . . Terminal Hacks 4 | . 3 . 1 . Record 4 | . 3 . 1 . Fabricator Hacks . | . . . . . Repair Station Hacks 3 | . . . 3 . Scan Component 2 | . . . 2 . Repair 1 | . . . 1 . Recycling Unit Hacks 2 | . 2 . . . Process 1 | . 1 . . . Report Inventory 1 | . 1 . . . Scanalyzer . | . . . . . Garrison Access Hacks . | . . . . . Unauthorized Hacks . | . . . . . Terminals . | . . . . . Fabricators . | . . . . . Repair Stations . | . . . . . Recycling Units . | . . . . . Scanalyzers . | . . . . . Garrison Access . | . . . . . Data Cores Recovered . | . . . . . Used . | . . . . . Hacking Detections 3 | . . . 3 . Full Trace Events 2 | . . . 2 . Feedback Events . | . . . . . Feedback Blocked . | . . . . . Robot Schematics Acquired . | . . . . . Robots Built . | . . . . . Authchips . | . . . . . Time . | . . . . . Total Robot Build Rating . | . . . . . Part Schematics Acquired . | . . . . . Parts Built . | . . . . . Authchips . | . . . . . Time . | . . . . . Total Part Build Rating . | . . . . . Parts Repaired 1 | . . . 1 . Time 26 | . . . 26 . Parts Recycled . | . . . . . Recycled Matter 16 | . 16 . . . Retrieved Matter . | . . . . . Retrieved Components . | . . . . . Parts Scanalyzed . | . . . . . Part Schematics Acquired . | . . . . . Parts Damaged . | . . . . . Bothacking | -11 -10 -10 -9 -9 ------------ Run | Jun Mat Min Mat Min Used RIF Installer . | . . . . . Robots Hacked . | . . . . . Non-combat . | . . . . . Combat . | . . . . . Robot Hacks Applied . | . . . . . Relay Couplers Released . | . . . . . Fabnet Peak Effective % . | . . . . . Robots Rewired . | . . . . . Allies Hacked . | . . . . . Hacks Repelled . | . . . . . Allies | -11 -10 -10 -9 -9 -------- Run | Jun Mat Min Mat Min Total Allies 2 | . . 2 . . Largest Group 2 | . . 2 1 . Highest-Rated Group 48 | . . 48 17 . Highest-Rated Ally 31 | . . 31 17 . Total Orders . | . . . . . Ally Attacks 8 | . . 8 . . Total Damage 61 | . . 61 . . Kills 1 | . . 1 . . Allies Corrupted . | . . . . . Allies Melted . | . . . . . Intel | -11 -10 -10 -9 -9 ------- Run | Jun Mat Min Mat Min Robot Analysis Total . | . . . . . Derelict Logs Recovered 2 | . . 2 . . Drone Launches . | . . . . . Drone Recoveries . | . . . . . Exploration | -11 -10 -10 -9 -9 ------------- Run | Jun Mat Min Mat Min Turns Passed 5594 | 73 532 2517 2249 223 Spaces Moved 1784 | 45 235 687 759 58 Core 20 | 19 . . . 1 Treads . | . . . . . Legs 1764 | 26 235 687 759 57 Wheels . | . . . . . Hover . | . . . . . Flight . | . . . . . Fastest Speed 50 | 50 120 330 260 260 Average Speed 293 | 138 215 351 271 345 Slowest Speed 1500 | 200 400 400 400 1500 Overloaded Moves . | . . . . . Propulsion Burnouts . | . . . . . Robots Hopped . | . . . . . Cave-ins Triggered . | . . . . . Exploration Rate (%) 38 | 3 36 91 38 22 Regions Visited 4 Branch Regions 2 Pre-discovered Areas 1 | . . 1 . . Known Exits Taken 1 | . . . 1 . Unknown Exits Taken 3 | 1 1 1 . . Scrap Searched 1 | . . 1 . . Spaces Dug . | . . . . . Terrain Destroyed 56 | . . . 56 . Melee . | . . . . . Projectile . | . . . . . AOE 56 | . . . 56 . Terrain Rammed . | . . . . . Walls Destroyed . | . . . . . Machines Disabled . | . . . . . Actions | -11 -10 -10 -9 -9 --------- Run | Jun Mat Min Mat Min Total 1971 | 52 253 733 863 70 Wait 4 | . . 1 3 . Move 1780 | 44 234 686 758 58 Hop . | . . . . . Pick Up 31 | 1 2 11 17 . Fast Attach 15 | 6 4 1 3 1 Attach 17 | . 2 1 13 1 Detach 13 | . 4 2 6 1 Swap 2 | 1 . . 1 . Drop 10 | . 1 2 7 . Fire 94 | . 6 25 54 9 Melee . | . . . . . Ram . | . . . . . Kick 5 | . . 4 1 . Crush . | . . . . . Escape Stasis . | . . . . . Rewire . | . . . . . Trap . | . . . . . Miscellaneous . | . . . . . Route ------- -11/Junkyard -10/Materials -10/Mines (discovered 2 exits: *Mat x2) -9/Materials (discovered 3 exits: Mat / *Min x2) -9/Mines (discovered 1 exit: *Zio) History --------- Turn | Location | Event 40 | -11/Junkyard | Discovered new exit (range 15) 74 | -11/Junkyard | Entered Materials 323 | -10/Materials | Build established: Mutant 403 | -10/Materials | Discovered new exit (range 13) 606 | -10/Materials | Entered Mines 642 | -10/Mines | Learned 2 Materials zone layouts 2003 | -10/Mines | Learned location of Recycling (-8) 2362 | -10/Mines | Found a damaged Exp. Sensor Array with a note attached 2369 | -10/Mines | Found Prototype Device 2442 | -10/Mines | Discovered new exit (range 4) 2558 | -10/Mines | Discovered new exit (range 11) 3123 | -10/Mines | Entered Materials 3123 | -9/Materials | Accompanied by 1 ally 3123 | -9/Materials | Evolved 2 slots: Power x1, Propulsion x1 3124 | -9/Materials | Identified exit to Materials 4039 | -9/Materials | Discovered new exit (range 9) 4285 | -9/Materials | Build established: Scavenger-Mutant 4346 | -9/Materials | Repaired Assault Rifle 4387 | -9/Materials | Discovered new exit (range 11) 4400 | -9/Materials | Lost 3 parts (1p1n1w) 5104 | -9/Materials | Core integrity fell below 50% 5140 | -9/Materials | Lost 3 parts (1p1n1w) 5362 | -9/Materials | Identified exit to Mines 5372 | -9/Materials | Entered Mines 5440 | -9/Mines | A Derelict revealed a hidden shortcut to a safe place 5485 | -9/Mines | Identified exit to Zion 5543 | -9/Mines | Assembled infested the area 5587 | -9/Mines | Core integrity fell below 20% 5595 | -9/Mines | Destroyed by D-53 Grenadier with Mini Grenade Launcher Last Messages --------------- 05586_ as-47577 suffers critical hit (Destroy). 05586_ HV Slug penetrates as-47577. 05586_ as-47577 suffers critical hit (Destroy). 05586_ as-47577 destroyed. 05588_ The unstable cave ceiling collapses. 05588_ HV Slug penetrates as-69332. 05588_ as-69332 destroyed. 05589_ The unstable cave ceiling collapses. 05590_ K-01 Serf collects debris. 05591_ The unstable cave ceiling collapses. 05594_ Autogun destroyed. 05594_ System corrupted by crushing effect (+4). 05594_ HV Slug penetrates as-02662. 05594_ HV Slug penetrates Wall. 05594_ HV Slug penetrates as-02662. 05594_ as-02662 suffers critical hit (Destroy). 05594_ as-02662 destroyed. 05594_ HV Slug penetrates Wall. 05595_ as-89955 destroyed. 05595_ as-08224 destroyed. Map ----- +----------------------------------------------------+ | ?????????????????????????????????????????????????? | | ?????????????????????????????????????????????????? | | ?????????????????????????????????????????????????? | | ?????????????????????????????????????????????????? | | ?????????????????????????????????????????????????? | | ?????????????????????????????????????????????????? | | ?????????????????????????????????????????????????? | | ?????????????????????????????????????????????????? | | ?????????????????????????????????????????????????? | | ?????????????????????????????????????????????????? | | ?????????????????????????????????????????????????? | | ?????????????????????????????????????????????????? | | ?????????????????????????????????????????????????? | | ?????????????????????????????????????????????????? | | ?????????????????????????????????????????????????? | | ????????????? ?#??????????????????????????#?????? | | ??????????? ? #;????????????????????????? ?????? | | ?????????? ??????????????????????? #?????? | | ?????????? ###?#####????????????? #?????? | | ????????? # ### ####?????????# ##????? | | ????????? # ##????#### ##???? | | ????????? # ##??## ##### | | ????????? #### | | ?????????? # # d " > | | ?????????? % "% # | | ??????????! # @ ### ##??? | | ?????????? # ### ##???? | | ??????????%% % ## # ### ##????? | | ???????????% ##???## ### ## #?????? | | ?????????????????????## = ###?## ##? #?????? | | ??????????????????????#### ????## #### #????? | | ?????????????????????????## ????# #???? | | ??????????????????????????# #???# ########?# | | ??????????????????????????# #???# #??## ## | | ??????????????????????????## ##???# #??# = = | | ????????????????????????????###????# #?## = = | | ???????????????????????????????????# ### [ | | ???????????????????????????????????# ## # | | ???????????????????????????????????# ## | | ???????????????????????????????????#### ####? | | ??????????????????????????????????????# ##???? | | ??????????????????????????????????????## #????? | | ???????????????????????????????????????### #????? | | ?????????????????????????????????????????# ???? | | ?????????????????????????????????????????# ###??? | | ????????????????????????????????????????? #????? | | ????????????????????????????????????????? #????? | | ?????????????????????????????????????????####????? | | ?????????????????????????????????????????????????? | | ?????????????????????????????????????????????????? | +----------------------------------------------------+ Best States ------------- Heat Dissipation 42 Energy Generation 23 Energy Capacity 400 Matter Stores 300 Matter Capacity 300 Sight Range 16 Terrain Scan Range 14 Terrain Scan Density 10 Resistance: KI 20 Resistance: TH 20 Resistance: EX 20 Resistance: EM 20 Resistance: I 20 Resistance: S 20 Resistance: P 20 Evasion (%) 55 Offensive Hacking 10 Item Schematics ----------------- None Robot Schematics ------------------ None Fabricated ------------ Nothing Alien Tech Used ----------------- None Achievements -------------- None Challenges ------------ None Game ------ Seed CentriumGreatSpecial Manual? 0 Play Time 01:39:50 Cumulative 9.4 hours Start 2024.02.12 @ 12:10:57 End 2024.02.14 @ 14:34:12 Sessions 5 Manual Loads 0 Difficulty Adventurer Special Mode None Game No. 7 Rogue 0 Adventurer 7 Explorer 0 Win Type - Total 0 Types 0/0/0/0/0/0/0/0/0 Lore% 1 Gallery% 7 Achievement% 7 Wizard Run 0 Options --------- ASCII 1 Keyboard 0 Movement Arrows Keybinds 0 Fullscreen 2 Font 14/SmallcapsGlow Map View 91x54 Tactical HUD 1 Map Filters NONE Filters NONE Steam 1 RUN: ef31ead3-908d-4827-ab08-da66cb8662cf